[Event "FIDE WYCC Girls U18 2023"]
[Site "Montesilvano"]
[Date "2023.11.24"]
[Round "11.30"]
[White "Sele, Timea"]
[Black "Lindstad, Livia"]
[Result "0-1"]
[ECO "E32"]
[WhiteElo "1456"]
[BlackElo "1848"]
[Annotator "NA RC"]
[PlyCount "112"]
[EventDate "2023.11.13"]
[EventType "swiss"]
[EventCountry "ITA"]
[SourceTitle "playchess.com"]
[Source "ChessBase"]
[SourceQuality "1"]
[TimeControl "40/5400+30:1800+30"]

1. d4 {[%emt 0:00:03]} Nf6 {[%emt 0:00:08]} 2. c4 {[%emt 0:00:05]} e6 {[%emt 0:00:13]} 3. Nc3 {[%emt 0:00:24]} Bb4 {[%emt 0:00:21]} 4. Qc2 {[%emt 0:00:20]} b6 {[%emt 0:00:23]} 5. e4 {[%emt 0:00:23]} c5 {[%emt 0:00:30]} 6. e5 {[%emt 0:11:31]} cxd4 {[%emt 0:08:52]} 7. a3 {[%emt 0:00:55]} Bxc3+ {[%emt 0:15:55]} 8. bxc3 {[%emt 0:00:22]} Ng8 {[%emt 0:01:01]} 9. cxd4 {[%emt 0:01:03]} Bb7 {[%emt 0:01:49]} 10. Nf3 {[%emt 0:07:10]} Qc7 {[%emt 0:06:56]} 11. Bd3 {[%emt 0:08:09]} Ne7 {[%emt 0:10:37]} 12. Be3 {[%emt 0:05:51]} Ng6 {[%emt 0:03:08]} 13. h4 {[%emt 0:01:52]} Ne7 {[%emt 0:06:26]} 14. Rc1 {[%emt 0:07:33]} d6 {[%emt 0:05:20]} 15. Bf4 {[%emt 0:10:51]} d5 {[%emt 0:01:52]} 16. c5 {[%emt 0:04:50]} bxc5 {[%emt 0:03:40]} 17. Qxc5 {[%emt 0:00:16]} Qxc5 {[%emt 0:00:19]} 18. Rxc5 {[%emt 0:00:03]} Bc6 {[%emt 0:02:27]} 19. O-O {[%emt 0:02:40]} h6 {[%emt 0:02:56]} 20. Rfc1 {[%emt 0:02:26]} O-O {[%emt 0:02:16]} 21. Bd2 {[%emt 0:06:34]} Bd7 {[%emt 0:12:29]} 22. Bb4 {[%emt 0:12:05]} Rd8 {[%emt 0:04:21]} 23. a4 {[%emt 0:03:29]} Nbc6 {[%emt 0:01:06]} 24. Ba3 {[%emt 0:00:31]} a5 {[%emt 0:04:05]} 25. Bb5 {[%emt 0:04:42]} Nb4 {[%emt 0:02:59]} 26. Rc7 {[%emt 0:00:56]} Bxb5 {[%emt 0:02:02]} 27. axb5 {[%emt 0:00:13]} Nc8 {[%emt 0:01:07]} 28. Nd2 {[%emt 0:01:47]} Nb6 {[%emt 0:00:38]} 29. Rb7 {[%emt 0:01:11]} Rab8 {[%emt 0:00:21]} 30. Rxb8 {[%emt 0:00:33]} Rxb8 {[%emt 0:00:01]} 31. Rb1 {[%emt 0:02:17]} Nc2 {[%emt 0:00:59]} 32. Bc5 {[%emt 0:00:43]} Nd7 {[%emt 0:00:29]} 33. Bd6 {[%emt 0:00:24]} Rb7 {[%emt 0:00:20]} 34. Nf3 {[%emt 0:01:02]} Nf8 {[%emt 0:00:50]} 35. Rb2 {[%emt 0:00:16]} Na1 {[%emt 0:00:31]} 36. Ra2 {[%emt 0:00:52]} Nb3 {[%emt 0:00:02]} 37. Ra3 {[%emt 0:00:23]} Rxb5 {[%emt 0:00:16]} 38. Kf1 {[%emt 0:01:08]} Nd7 {[%emt 0:00:29]} 39. Ke2 {[%emt 0:00:50]} Nb6 {[%emt 0:00:09]} 40. Bc7 {[%emt 0:00:00]} Nc4 {[%emt 0:00:00]} 41. Ra4 {[%emt 0:04:47]} Nc1+ {[%emt 0:04:04]} 42. Kf1 {[%emt 0:04:04]} Nd3 {[%emt 0:02:05]} 43. Kg1 {[%emt 0:01:58]} Ndb2 {[%emt 0:04:22]} 44. Ra2 {[%emt 0:01:52]} a4 {[%emt 0:00:31]} 45. Bd6 {[%emt 0:00:52]} Rb3 {[%emt 0:01:00]} 46. Ne1 {[%emt 0:00:55]} Nxd6 {[%emt 0:05:40]} 47. exd6 {[%emt 0:00:45]} Kf8 {[%emt 0:00:13]} 48. Nf3 {[%emt 0:01:59]} f6 {[%emt 0:00:22]} 49. Nd2 {[%emt 0:00:47]} Rb4 {[%emt 0:00:11]} 50. Kf1 {[%emt 0:00:49]} Ke8 {[%emt 0:00:36]} 51. Nb1 {[%emt 0:04:26]} Kd7 {[%emt 0:00:28]} 52. Nc3 {[%emt 0:00:52]} Kxd6 {[%emt 0:00:28]} 53. Rxb2 {[%emt 0:01:13]} Rxb2 {[%emt 0:00:36]} 54. Nxa4 {[%emt 0:00:03]} Rb3 {[%emt 0:01:19]} 55. Ke2 {[%emt 0:01:17]} e5 {[%emt 0:00:59]} 56. Nc5 {[%emt 0:02:08]} Rb4 {[%emt 0:00:58]} 0-1

[Event "FIDE WYCC Girls U18 2023"]
[Site "Montesilvano"]
[Date "2023.11.24"]
[Round "11.31"]
[White "Chavez Echeverria, Ana Karen"]
[Black "Hoanca, Alexia-Ioana"]
[Result "1/2-1/2"]
[ECO "D00"]
[WhiteElo "1230"]
[BlackElo "1830"]
[Annotator "NA RC"]
[PlyCount "140"]
[EventDate "2023.11.13"]
[EventType "swiss"]
[EventCountry "ITA"]
[SourceTitle "playchess.com"]
[Source "ChessBase"]
[SourceQuality "1"]
[TimeControl "40/5400+30:1800+30"]

1. d4 {[%emt 0:00:31]} d5 {[%emt 0:00:05]} 2. Bf4 {[%emt 0:00:12]} Nf6 {[%emt 0:00:14]} 3. e3 {[%emt 0:00:24]} c5 {[%emt 0:00:13]} 4. Nf3 {[%emt 0:00:26]} e6 {[%emt 0:00:22]} 5. c4 {[%emt 0:01:47]} Nc6 {[%emt 0:04:38]} 6. Nc3 {[%emt 0:06:03]} cxd4 {[%emt 0:05:51]} 7. exd4 {[%emt 0:01:16]} Be7 {[%emt 0:06:06]} 8. c5 {[%emt 0:03:31]} Ne4 {[%emt 0:08:34]} 9. Bd3 {[%emt 0:06:27]} Nxc3 {[%emt 0:06:44]} 10. bxc3 {[%emt 0:00:10]} O-O {[%emt 0:01:10]} 11. O-O {[%emt 0:00:13]} Bd7 {[%emt 0:07:57]} 12. Qc2 {[%emt 0:02:59]} f5 {[%emt 0:06:20]} 13. Ne5 {[%emt 0:06:38]} Nxe5 {[%emt 0:02:09]} 14. Bxe5 {[%emt 0:00:22]} Bf6 {[%emt 0:00:25]} 15. Bd6 {[%emt 0:02:53]} Re8 {[%emt 0:01:49]} 16. Rad1 {[%emt 0:10:57]} Rc8 {[%emt 0:05:24]} 17. Rfe1 {[%emt 0:04:02]} Qa5 {[%emt 0:01:55]} 18. Re3 {[%emt 0:07:46]} Ba4 {[%emt 0:02:59]} 19. Qe2 {[%emt 0:01:59]} Bxd1 {[%emt 0:00:29]} 20. Qxd1 {[%emt 0:00:08]} Qxc3 {[%emt 0:25:16]} 21. Bb5 {[%emt 0:03:45]} Qxd4 {[%emt 0:03:04]} 22. Rd3 {[%emt 0:00:20]} Qb2 {[%emt 0:02:55]} 23. Bxe8 {[%emt 0:03:16]} Rxe8 {[%emt 0:00:13]} 24. Rb3 {[%emt 0:05:53]} Qxa2 {[%emt 0:01:40]} 25. Rxb7 {[%emt 0:00:16]} Rc8 {[%emt 0:04:42]} 26. h3 {[%emt 0:02:00]} Qa1 {[%emt 0:00:38]} 27. Qxa1 {[%emt 0:00:31]} Bxa1 {[%emt 0:00:04]} 28. Rxa7 {[%emt 0:00:36]} Bd4 {[%emt 0:00:08]} 29. Re7 {[%emt 0:02:31]} Bxc5 {[%emt 0:01:45]} 30. Bxc5 {[%emt 0:00:45]} Rxc5 {[%emt 0:00:04]} 31. Rxe6 {[%emt 0:00:08]} Kf7 {[%emt 0:01:21]} 32. Re1 {[%emt 0:02:43]} d4 {[%emt 0:00:27]} 33. Kf1 {[%emt 0:00:19]} Rd5 {[%emt 0:00:15]} 34. f3 {[%emt 0:01:14]} f4 {[%emt 0:00:42]} 35. Re4 {[%emt 0:01:40]} d3 {[%emt 0:00:32]} 36. Rxf4+ {[%emt 0:00:39]} Kg6 {[%emt 0:00:03]} 37. Ke1 {[%emt 0:00:17]} d2+ {[%emt 0:00:51]} 38. Kd1 {[%emt 0:00:12]} h5 {[%emt 0:00:14]} 39. Re4 {[%emt 0:00:22]} Kf5 {[%emt 0:00:12]} 40. g3 {[%emt 0:00:00]} g5 {[%emt 0:00:00]} 41. g4+ {[%emt 0:07:44]} hxg4 {[%emt 0:01:07]} 42. hxg4+ {[%emt 0:00:10]} Kf6 {[%emt 0:00:40]} 43. Re2 {[%emt 0:02:07]} Rd3 {[%emt 0:02:55]} 44. Rxd2 {[%emt 0:00:40]} Rxf3 {[%emt 0:00:07]} 45. Rd4 {[%emt 0:02:52]} Ke5 {[%emt 0:01:06]} 46. Rb4 {[%emt 0:00:45]} Rd3+ {[%emt 0:04:13]} 47. Ke2 {[%emt 0:02:21]} Rd4 {[%emt 0:00:08]} 48. Rxd4 {[%emt 0:05:11]} Kxd4 {[%emt 0:00:04]} 49. Kf3 {[%emt 0:01:35]} Kd3 {[%emt 0:00:16]} 50. Kf2 {[%emt 0:01:53]} Ke4 {[%emt 0:00:34]} 51. Kg2 {[%emt 0:00:16]} Kf4 {[%emt 0:00:35]} 52. Kh3 {[%emt 0:00:24]} Kf3 {[%emt 0:00:13]} 53. Kh2 {[%emt 0:00:06]} Kxg4 {[%emt 0:00:05]} 54. Kg2 {[%emt 0:00:06]} Kf4 {[%emt 0:00:29]} 55. Kf2 {[%emt 0:00:10]} g4 {[%emt 0:00:27]} 56. Kg2 {[%emt 0:00:15]} Kf5 {[%emt 0:00:51]} 57. Kf1 {[%emt 0:00:51]} g3 {[%emt 0:00:26]} 58. Kg2 {[%emt 0:00:19]} Kg4 {[%emt 0:00:11]} 59. Kg1 {[%emt 0:00:10]} Kf3 {[%emt 0:00:17]} 60. Kf1 {[%emt 0:00:07]} Ke3 {[%emt 0:00:18]} 61. Kg2 {[%emt 0:01:16]} Kf4 {[%emt 0:00:30]} 62. Kg1 {[%emt 0:00:16]} Kf5 {[%emt 0:00:35]} 63. Kf1 {[%emt 0:00:31]} Kg4 {[%emt 0:00:14]} 64. Kg2 {[%emt 0:00:12]} Kh4 {[%emt 0:00:07]} 65. Kg1 {[%emt 0:00:09]} Kh3 {[%emt 0:00:05]} 66. Kh1 {[%emt 0:00:15]} Kg4 {[%emt 0:00:12]} 67. Kg2 {[%emt 0:00:22]} Kf4 {[%emt 0:00:04]} 68. Kg1 {[%emt 0:00:16]} Kf3 {[%emt 0:00:04]} 69. Kf1 {[%emt 0:00:14]} g2+ {[%emt 0:00:02]} 70. Kg1 {[%emt 0:00:08]} Kg3 1/2-1/2

[Event "FIDE WYCC Girls U18 2023"]
[Site "Montesilvano"]
[Date "2023.11.24"]
[Round "11.32"]
[White "Alexandrova, Angelina"]
[Black "Gavrileva, Anna"]
[Result "1-0"]
[ECO "D02"]
[WhiteElo "1814"]
[BlackElo "1316"]
[Annotator "NA RC"]
[PlyCount "85"]
[EventDate "2023.11.13"]
[EventType "swiss"]
[EventCountry "ITA"]
[SourceTitle "playchess.com"]
[Source "ChessBase"]
[SourceQuality "1"]
[TimeControl "40/5400+30:1800+30"]

1. d4 {[%emt 0:00:02]} d5 {[%emt 0:00:06]} 2. Nf3 {[%emt 0:00:03]} Nf6 {[%emt 0:00:04]} 3. g3 {[%emt 0:00:03]} e6 {[%emt 0:00:26]} 4. Bg2 {[%emt 0:00:05]} Be7 {[%emt 0:00:09]} 5. O-O {[%emt 0:00:09]} O-O {[%emt 0:00:04]} 6. b3 {[%emt 0:00:09]} b6 {[%emt 0:02:36]} 7. c4 {[%emt 0:00:12]} c6 {[%emt 0:00:07]} 8. Bb2 {[%emt 0:00:21]} a5 {[%emt 0:00:56]} 9. Nbd2 {[%emt 0:01:47]} Bb7 {[%emt 0:00:11]} 10. Qc2 {[%emt 0:07:11]} Na6 {[%emt 0:00:11]} 11. a3 {[%emt 0:00:19]} Rc8 {[%emt 0:01:28]} 12. e4 {[%emt 0:01:12]} Nc7 {[%emt 0:01:03]} 13. Rfd1 {[%emt 0:07:11]} Nd7 {[%emt 0:10:28]} 14. Ne5 {[%emt 0:04:56]} Nxe5 {[%emt 0:22:08]} 15. dxe5 {[%emt 0:00:15]} d4 {[%emt 0:00:22]} 16. f4 {[%emt 0:01:58]} c5 {[%emt 0:04:33]} 17. f5 {[%emt 0:01:36]} exf5 {[%emt 0:00:25]} 18. exf5 {[%emt 0:00:09]} Bxg2 {[%emt 0:00:09]} 19. Kxg2 {[%emt 0:00:06]} Bg5 {[%emt 0:08:04]} 20. Ne4 {[%emt 0:02:26]} Re8 {[%emt 0:15:42]} 21. Nd6 {[%emt 0:02:34]} Rxe5 {[%emt 0:00:14]} 22. Nxc8 {[%emt 0:00:10]} Qxc8 {[%emt 0:00:02]} 23. Rf1 {[%emt 0:07:28]} Qd7 {[%emt 0:06:38]} 24. Qf2 {[%emt 0:08:07]} g6 {[%emt 0:17:43]} 25. fxg6 {[%emt 0:09:20]} hxg6 {[%emt 0:00:15]} 26. Rae1 {[%emt 0:06:55]} Be3 {[%emt 0:03:00]} 27. Qf6 {[%emt 0:02:22]} Re6 {[%emt 0:01:56]} 28. Qf3 {[%emt 0:01:37]} Re5 {[%emt 0:01:44]} 29. Qb7 {[%emt 0:04:33]} Qd6 {[%emt 0:02:42]} 30. Rf3 {[%emt 0:01:56]} Re7 {[%emt 0:00:22]} 31. Qc8+ {[%emt 0:01:04]} Re8 {[%emt 0:00:52]} 32. Qg4 {[%emt 0:02:29]} Ne6 {[%emt 0:01:02]} 33. h4 {[%emt 0:00:15]} Ng7 {[%emt 0:00:38]} 34. Rff1 {[%emt 0:02:59]} Nf5 {[%emt 0:00:36]} 35. Rxf5 {[%emt 0:00:25]} Qc6+ {[%emt 0:00:28]} 36. Rd5 {[%emt 0:00:28]} Qf6 {[%emt 0:00:16]} 37. Rf1 {[%emt 0:00:56]} Qc6 {[%emt 0:00:38]} 38. Qf3 {[%emt 0:02:56]} Qc7 {[%emt 0:00:25]} 39. h5 {[%emt 0:00:56]} g5 {[%emt 0:00:28]} 40. h6 {[%emt 0:00:00]} Re6 {[%emt 0:00:00]} 41. Rd8+ {[%emt 0:04:04]} Kh7 {[%emt 0:00:51]} 42. Qf5+ {[%emt 0:00:24]} Rg6 {[%emt 0:00:51]} 43. Qxf7+ {[%emt 0:00:12]} 1-0

[Event "FIDE WYCC Girls U18 2023"]
[Site "Montesilvano"]
[Date "2023.11.24"]
[Round "11.33"]
[White "Latifah, Darmaki"]
[Black "Darweeche, Roaa"]
[Result "1-0"]
[ECO "B01"]
[WhiteElo "1367"]
[BlackElo "1406"]
[Annotator "NA RC"]
[PlyCount "61"]
[EventDate "2023.11.13"]
[EventType "swiss"]
[EventCountry "ITA"]
[SourceTitle "playchess.com"]
[Source "ChessBase"]
[SourceQuality "1"]
[TimeControl "40/5400+30:1800+30"]

1. e4 {[%emt 0:00:03]} d5 {[%emt 0:00:17]} 2. exd5 {[%emt 0:00:13]} Nf6 {[%emt 0:00:13]} 3. d4 {[%emt 0:01:05]} Nxd5 {[%emt 0:00:29]} 4. c4 {[%emt 0:00:34]} Nf6 {[%emt 0:00:13]} 5. Nf3 {[%emt 0:05:31]} e6 {[%emt 0:00:52]} 6. a3 {[%emt 0:05:44]} c5 {[%emt 0:00:40]} 7. Be3 {[%emt 0:11:19]} cxd4 {[%emt 0:01:02]} 8. Nxd4 {[%emt 0:11:46]} Be7 {[%emt 0:02:02]} 9. Nc3 {[%emt 0:04:12]} O-O {[%emt 0:01:50]} 10. Be2 {[%emt 0:02:03]} Bd7 {[%emt 0:04:12]} 11. Qb3 {[%emt 0:02:48]} Nc6 {[%emt 0:05:07]} 12. Qxb7 {[%emt 0:10:47]} Rb8 {[%emt 0:00:13]} 13. Nxc6 {[%emt 0:01:37]} Rxb7 {[%emt 0:00:09]} 14. Nxd8 {[%emt 0:00:07]} Rxd8 {[%emt 0:02:28]} 15. b4 {[%emt 0:01:03]} Bc6 {[%emt 0:02:15]} 16. O-O {[%emt 0:02:30]} Ne4 {[%emt 0:04:25]} 17. Nxe4 {[%emt 0:11:10]} Bxe4 {[%emt 0:00:07]} 18. Rfd1 {[%emt 0:01:43]} Rc8 {[%emt 0:00:27]} 19. c5 {[%emt 0:01:51]} Rd8 {[%emt 0:00:49]} 20. b5 {[%emt 0:03:13]} Rbd7 {[%emt 0:07:23]} 21. Rxd7 {[%emt 0:03:11]} Rxd7 {[%emt 0:00:07]} 22. c6 {[%emt 0:00:31]} Rc7 {[%emt 0:00:47]} 23. Rd1 {[%emt 0:05:11]} Bd5 {[%emt 0:00:19]} 24. a4 {[%emt 0:08:01]} Bd6 {[%emt 0:02:58]} 25. Bf3 {[%emt 0:02:47]} Bxf3 {[%emt 0:03:45]} 26. Rxd6 {[%emt 0:00:38]} Kf8 {[%emt 0:02:29]} 27. gxf3 {[%emt 0:00:14]} Ke7 {[%emt 0:00:10]} 28. Bc5 {[%emt 0:00:21]} Ke8 {[%emt 0:00:10]} 29. b6 {[%emt 0:02:01]} axb6 {[%emt 0:00:08]} 30. Bxb6 {[%emt 0:00:03]} Rc8 {[%emt 0:00:09]} 31. c7 {[%emt 0:01:29]} 1-0

[Event "FIDE WYCC Girls U18 2023"]
[Site "Montesilvano"]
[Date "2023.11.24"]
[Round "11.34"]
[White "Nielsen-Refs, Ingrid Elmer"]
[Black "Lunar Villaman, Sofia"]
[Result "1-0"]
[ECO "E71"]
[WhiteElo "1676"]
[BlackElo "1305"]
[Annotator "NA RC"]
[PlyCount "57"]
[EventDate "2023.11.13"]
[EventType "swiss"]
[EventCountry "ITA"]
[SourceTitle "playchess.com"]
[Source "ChessBase"]
[SourceQuality "1"]
[TimeControl "40/5400+30:1800+30"]

1. d4 {[%emt 0:00:06]} Nf6 {[%emt 0:00:06]} 2. c4 {[%emt 0:00:06]} g6 {[%emt 0:00:04]} 3. Nc3 {[%emt 0:00:09]} Bg7 {[%emt 0:00:09]} 4. e4 {[%emt 0:00:36]} d6 {[%emt 0:02:33]} 5. h3 {[%emt 0:01:21]} O-O {[%emt 0:02:03]} 6. Be3 {[%emt 0:00:16]} e5 {[%emt 0:02:34]} 7. d5 {[%emt 0:00:25]} a5 {[%emt 0:02:20]} 8. g4 {[%emt 0:01:10]} Ne8 {[%emt 0:40:55]} 9. Nge2 {[%emt 0:11:36]} Bf6 {[%emt 0:19:13]} 10. Qd2 Na6 {[%emt 0:01:25]} 11. g5 {[%emt 0:13:17]} Bg7 {[%emt 0:00:46]} 12. Ng3 {[%emt 0:02:26]} f5 {[%emt 0:07:44]} 13. exf5 {[%emt 0:05:59]} Bxf5 {[%emt 0:07:06]} 14. Nxf5 {[%emt 0:03:12]} gxf5 {[%emt 0:00:12]} 15. f4 {[%emt 0:01:54]} e4 {[%emt 0:04:04]} 16. h4 {[%emt 0:03:11]} Kf7 {[%emt 0:04:12]} 17. h5 {[%emt 0:07:08]} Ke7 {[%emt 0:01:41]} 18. Bh3 {[%emt 0:01:26]} Nc5 {[%emt 0:01:08]} 19. O-O-O {[%emt 0:05:12]} Bxc3 {[%emt 0:00:32]} 20. Qxc3 {[%emt 0:01:18]} Nd3+ {[%emt 0:00:38]} 21. Kb1 {[%emt 0:01:12]} Kd7 {[%emt 0:00:26]} 22. Rxd3 {[%emt 0:10:49]} exd3 {[%emt 0:00:49]} 23. Qxd3 {[%emt 0:00:06]} Kc8 {[%emt 0:00:26]} 24. Bxf5+ {[%emt 0:00:23]} Kb8 {[%emt 0:00:23]} 25. Bxh7 {[%emt 0:00:50]} Qd7 {[%emt 0:00:24]} 26. h6 {[%emt 0:04:26]} Rh8 {[%emt 0:00:50]} 27. Bf5 {[%emt 0:03:13]} Qe7 {[%emt 0:00:32]} 28. Bd4 {[%emt 0:01:10]} Rf8 {[%emt 0:00:37]} 29. h7 {[%emt 0:01:23]} 1-0

[Event "FIDE WYCC Girls U18 2023"]
[Site "Montesilvano"]
[Date "2023.11.24"]
[Round "11.35"]
[White "Larsson, Susanne Wiggen"]
[Black "Gonzalez Romo, Greshya Jocelyn"]
[Result "0-1"]
[ECO "A06"]
[WhiteElo "1159"]
[BlackElo "1494"]
[Annotator "NA RC"]
[PlyCount "78"]
[EventDate "2023.11.13"]
[EventType "swiss"]
[EventCountry "ITA"]
[SourceTitle "playchess.com"]
[Source "ChessBase"]
[SourceQuality "1"]
[TimeControl "40/5400+30:1800+30"]

1. Nf3 {[%emt 0:00:04]} d5 {[%emt 0:00:16]} 2. g3 {[%emt 0:00:10]} c6 {[%emt 0:00:23]} 3. Bg2 {[%emt 0:00:28]} Bf5 {[%emt 0:00:26]} 4. O-O {[%emt 0:00:34]} e6 {[%emt 0:01:41]} 5. d3 {[%emt 0:01:06]} Nf6 {[%emt 0:01:16]} 6. Nbd2 {[%emt 0:01:10]} Be7 {[%emt 0:01:32]} 7. b3 O-O {[%emt 0:02:12]} 8. Bb2 {[%emt 0:03:15]} h6 {[%emt 0:03:16]} 9. Re1 {[%emt 0:03:16]} Na6 {[%emt 0:09:14]} 10. e4 {[%emt 0:03:46]} dxe4 {[%emt 0:02:15]} 11. dxe4 {[%emt 0:00:12]} Bh7 {[%emt 0:00:18]} 12. Qe2 {[%emt 0:06:28]} Nc5 {[%emt 0:08:13]} 13. Rad1 {[%emt 0:05:06]} Qc7 {[%emt 0:06:46]} 14. Be5 {[%emt 0:12:24]} Qc8 {[%emt 0:01:12]} 15. Nd4 {[%emt 0:02:40]} Ncd7 {[%emt 0:01:21]} 16. Nc4 {[%emt 0:02:07]} Nxe5 {[%emt 0:01:34]} 17. Nxe5 {[%emt 0:00:08]} Qc7 {[%emt 0:05:22]} 18. Ng4 {[%emt 0:02:32]} Nd7 {[%emt 0:09:22]} 19. e5 {[%emt 0:08:26]} h5 {[%emt 0:03:21]} 20. Ne3 {[%emt 0:00:14]} Nxe5 {[%emt 0:00:22]} 21. Qxh5 {[%emt 0:00:43]} Bg6 {[%emt 0:00:44]} 22. Qe2 {[%emt 0:01:06]} a6 {[%emt 0:07:03]} 23. h4 {[%emt 0:03:42]} c5 {[%emt 0:02:47]} 24. Nf3 {[%emt 0:01:10]} Bh5 {[%emt 0:00:44]} 25. Nc4 {[%emt 0:00:54]} Nc6 {[%emt 0:03:14]} 26. Qd3 {[%emt 0:05:42]} Rad8 {[%emt 0:03:16]} 27. Qe4 {[%emt 0:01:47]} Rxd1 {[%emt 0:01:36]} 28. Rxd1 {[%emt 0:03:08]} b5 {[%emt 0:00:23]} 29. Ne3 {[%emt 0:01:10]} Nb4 {[%emt 0:04:46]} 30. c3 {[%emt 0:05:23]} Bg6 {[%emt 0:02:39]} 31. Qe5 {[%emt 0:02:54]} Qxe5 {[%emt 0:01:40]} 32. Nxe5 {[%emt 0:00:06]} Nxa2 {[%emt 0:00:31]} 33. Ra1 {[%emt 0:01:12]} Nxc3 {[%emt 0:00:23]} 34. Rxa6 {[%emt 0:00:08]} Be4 {[%emt 0:01:12]} 35. f3 {[%emt 0:03:27]} Bd5 {[%emt 0:03:02]} 36. Nxd5 {[%emt 0:01:03]} exd5 {[%emt 0:00:21]} 37. Ra7 {[%emt 0:02:10]} Bd6 {[%emt 0:02:53]} 38. f4 {[%emt 0:02:07]} c4 {[%emt 0:00:45]} 39. bxc4 {[%emt 0:00:26]} Bc5+ {[%emt 0:00:05]} 0-1